[Event "Early-Titled-Tuesday-Blitz-March-26-2024"]
[Site "Chess.com"]
[Date "2024.03.26"]
[Round "11"]
[White "Cobysters"]
[Black "sokidze"]
[Result "0-1"]
[WhiteElo "2594"]
[BlackElo "2795"]
[TimeControl "180+1"]
[EndTime "10:04:17 PDT"]
[Termination "sokidze won by resignation"]

1. c4 {[%clk 0:03:00.9]} 1... e6 {[%clk 0:02:59.9]} 2. Nc3 {[%clk 0:03:00.5]}
2... d5 {[%clk 0:03:00.5]} 3. d4 {[%clk 0:03:01]} 3... a6 {[%clk 0:03:01.1]} 4.
g3 {[%clk 0:03:01.3]} 4... dxc4 {[%clk 0:02:59.3]} 5. Bg2 {[%clk 0:03:01.6]}
5... Nf6 {[%clk 0:02:58.5]} 6. Nf3 {[%clk 0:02:59.7]} 6... c5 {[%clk 0:02:53.3]}
7. O-O {[%clk 0:02:57.7]} 7... Nc6 {[%clk 0:02:53.3]} 8. dxc5 {[%clk 0:02:55.8]}
8... Qxd1 {[%clk 0:02:53]} 9. Rxd1 {[%clk 0:02:56.7]} 9... Bxc5 {[%clk
0:02:53.5]} 10. Bg5 {[%clk 0:02:53.6]} 10... O-O {[%clk 0:02:48.8]} 11. Nd2
{[%clk 0:02:51.4]} 11... Na5 {[%clk 0:02:39]} 12. Nde4 {[%clk 0:02:46.8]} 12...
Be7 {[%clk 0:02:36.9]} 13. Nxf6+ {[%clk 0:02:40.8]} 13... Bxf6 {[%clk
0:02:28.5]} 14. Bxf6 {[%clk 0:02:41]} 14... gxf6 {[%clk 0:02:29.4]} 15. Ne4
{[%clk 0:02:41.9]} 15... f5 {[%clk 0:02:19.8]} 16. Nd6 {[%clk 0:02:41.7]} 16...
Rb8 {[%clk 0:02:18.7]} 17. a4 {[%clk 0:02:33.9]} 17... Rd8 {[%clk 0:02:08.9]}
18. Kf1 {[%clk 0:02:12.1]} 18... Kf8 {[%clk 0:02:00.4]} 19. e4 {[%clk
0:02:03.1]} 19... fxe4 {[%clk 0:01:56.6]} 20. Bxe4 {[%clk 0:02:01.5]} 20... f5
{[%clk 0:01:48]} 21. Bf3 {[%clk 0:01:55]} 21... Ke7 {[%clk 0:01:11.9]} 22. Nxc8+
{[%clk 0:01:54.6]} 22... Rbxc8 {[%clk 0:01:12.3]} 23. Ke2 {[%clk 0:01:53.4]}
23... Rc5 {[%clk 0:00:51.8]} 24. Ke3 {[%clk 0:01:42.3]} 24... e5 {[%clk
0:00:46.5]} 25. Rxd8 {[%clk 0:01:37]} 25... Kxd8 {[%clk 0:00:46.7]} 26. Rd1+
{[%clk 0:01:37.4]} 26... Ke7 {[%clk 0:00:47.2]} 27. Rd5 {[%clk 0:01:36.6]} 27...
Nb3 {[%clk 0:00:36.6]} 28. h4 {[%clk 0:01:22.4]} 28... b5 {[%clk 0:00:12.1]} 29.
axb5 {[%clk 0:01:20.4]} 29... axb5 {[%clk 0:00:13]} 30. h5 {[%clk 0:01:17.2]}
30... h6 {[%clk 0:00:12.3]} 31. Rd1 {[%clk 0:01:14.9]} 31... Nd4 {[%clk
0:00:12.2]} 32. Bg2 {[%clk 0:01:11.4]} 32... b4 {[%clk 0:00:08.9]} 33. f4 {[%clk
0:01:07.3]} 33... c3 {[%clk 0:00:08.7]} 34. fxe5 {[%clk 0:01:05.6]} 34... c2
{[%clk 0:00:05.5]} 0-1

[Event "Early-Titled-Tuesday-Blitz-March-26-2024"]
[Site "Chess.com"]
[Date "2024.03.26"]
[Round "11"]
[White "Chxss_Khxsbu"]
[Black "ural58"]
[Result "0-1"]
[WhiteElo "1832"]
[BlackElo "2470"]
[TimeControl "180+1"]
[EndTime "10:04:18 PDT"]
[Termination "ural58 won on time"]

1. e4 {[%clk 0:02:47.7]} 1... d5 {[%clk 0:02:58.7]} 2. exd5 {[%clk 0:02:46.5]}
2... Qxd5 {[%clk 0:02:58.3]} 3. Nc3 {[%clk 0:02:41.2]} 3... Qa5 {[%clk 0:02:56]}
4. d4 {[%clk 0:02:41]} 4... Nf6 {[%clk 0:02:55.7]} 5. Bc4 {[%clk 0:02:39.9]}
5... Nc6 {[%clk 0:02:54.9]} 6. Nf3 {[%clk 0:02:38.7]} 6... Bg4 {[%clk
0:02:53.7]} 7. h3 {[%clk 0:02:34.2]} 7... Qh5 {[%clk 0:02:50.1]} 8. Be3 {[%clk
0:02:17.7]} 8... Bxf3 {[%clk 0:02:47.8]} 9. Qxf3 {[%clk 0:02:16.7]} 9... Qxf3
{[%clk 0:02:47.6]} 10. gxf3 {[%clk 0:02:17.6]} 10... e6 {[%clk 0:02:45.2]} 11.
O-O-O {[%clk 0:02:16.2]} 11... O-O-O {[%clk 0:02:44.4]} 12. f4 {[%clk
0:02:12.3]} 12... Ne7 {[%clk 0:02:33.5]} 13. f3 {[%clk 0:02:03.9]} 13... a6
{[%clk 0:02:32.7]} 14. Ne4 {[%clk 0:01:45.5]} 14... Nfd5 {[%clk 0:02:29.3]} 15.
Bd2 {[%clk 0:01:42.5]} 15... h6 {[%clk 0:02:28.7]} 16. Nc5 {[%clk 0:01:38.6]}
16... Nf5 {[%clk 0:02:17.8]} 17. Bd3 {[%clk 0:01:30.1]} 17... Bd6 {[%clk
0:02:12.8]} 18. Bxf5 {[%clk 0:01:28.5]} 18... exf5 {[%clk 0:02:12.6]} 19. Nd3
{[%clk 0:01:27.3]} 19... f6 {[%clk 0:02:03.4]} 20. Rhg1 {[%clk 0:01:21.3]} 20...
g5 {[%clk 0:02:03.1]} 21. fxg5 {[%clk 0:01:20.5]} 21... hxg5 {[%clk 0:02:02.4]}
22. Rh1 {[%clk 0:01:14]} 22... Rh4 {[%clk 0:01:57]} 23. c3 {[%clk 0:01:10.3]}
23... Rdh8 {[%clk 0:01:56.2]} 24. Nf2 {[%clk 0:01:09.7]} 24... Bg3 {[%clk
0:01:54.4]} 25. Be1 {[%clk 0:01:05.4]} 25... Bxf2 {[%clk 0:01:51.5]} 26. Bxf2
{[%clk 0:01:05.3]} 26... Rxh3 {[%clk 0:01:52]} 27. Rhe1 {[%clk 0:01:00.8]} 27...
Rxf3 {[%clk 0:01:50.1]} 28. Bg1 {[%clk 0:01:00.9]} 28... f4 {[%clk 0:01:42.2]}
29. Re6 {[%clk 0:00:59.8]} 29... Kd7 {[%clk 0:01:37.5]} 30. Rde1 {[%clk
0:00:57.1]} 30... Rh1 {[%clk 0:01:36.8]} 31. c4 {[%clk 0:00:43.3]} 31... Rxg1
{[%clk 0:01:35.4]} 32. cxd5 {[%clk 0:00:39.5]} 32... Rxe1+ {[%clk 0:01:34.1]}
33. Rxe1 {[%clk 0:00:40.4]} 33... Re3 {[%clk 0:01:31.1]} 34. Rh1 {[%clk
0:00:37.7]} 34... Rd3 {[%clk 0:01:25.8]} 35. Rh6 {[%clk 0:00:37.4]} 35... Rxd4
{[%clk 0:01:25.1]} 36. Rxf6 {[%clk 0:00:37.2]} 36... Rxd5 {[%clk 0:01:25.2]} 37.
Kc2 {[%clk 0:00:37.1]} 37... Ke7 {[%clk 0:01:24.3]} 38. Rg6 {[%clk 0:00:36.6]}
38... Kf7 {[%clk 0:01:24.1]} 39. Rh6 {[%clk 0:00:36.4]} 39... f3 {[%clk
0:01:22.9]} 40. Rh2 {[%clk 0:00:36]} 40... g4 {[%clk 0:01:22.2]} 41. Rf2 {[%clk
0:00:35.5]} 41... Kf6 {[%clk 0:01:21.3]} 42. Kc3 {[%clk 0:00:35.8]} 42... Kf5
{[%clk 0:01:21.4]} 43. Kc4 {[%clk 0:00:35.7]} 43... c6 {[%clk 0:01:21]} 44. Kb4
{[%clk 0:00:08.2]} 44... Kf4 {[%clk 0:01:20.2]} 0-1

[Event "Early-Titled-Tuesday-Blitz-March-26-2024"]
[Site "Chess.com"]
[Date "2024.03.26"]
[Round "11"]
[White "Philippians46"]
[Black "MightyGMpretender"]
[Result "0-1"]
[WhiteElo "2973"]
[BlackElo "2784"]
[TimeControl "180+1"]
[EndTime "10:04:21 PDT"]
[Termination "MightyGMpretender won by checkmate"]

1. d4 {[%clk 0:03:00.9]} 1... Nf6 {[%clk 0:02:59.4]} 2. Nf3 {[%clk 0:03:01]}
2... d5 {[%clk 0:02:59.5]} 3. Bf4 {[%clk 0:03:01.2]} 3... e6 {[%clk 0:02:47.9]}
4. e3 {[%clk 0:03:00.1]} 4... Be7 {[%clk 0:02:47.5]} 5. Bd3 {[%clk 0:02:58]}
5... Nbd7 {[%clk 0:02:46.6]} 6. Nbd2 {[%clk 0:02:57.2]} 6... Nh5 {[%clk
0:02:41.8]} 7. Bg3 {[%clk 0:02:54.9]} 7... b6 {[%clk 0:02:42.4]} 8. Ne5 {[%clk
0:02:51.5]} 8... Nxe5 {[%clk 0:02:35.1]} 9. Bxe5 {[%clk 0:02:52.4]} 9... Nf6
{[%clk 0:02:33.8]} 10. c3 {[%clk 0:02:49.7]} 10... Bb7 {[%clk 0:02:33.3]} 11. a4
{[%clk 0:02:49.9]} 11... a5 {[%clk 0:02:31.6]} 12. h4 {[%clk 0:02:50.2]} 12...
Bd6 {[%clk 0:02:30.2]} 13. Nf3 {[%clk 0:02:49.4]} 13... Bxe5 {[%clk 0:02:29.3]}
14. Nxe5 {[%clk 0:02:50.3]} 14... O-O {[%clk 0:02:15.3]} 15. h5 {[%clk
0:02:49.5]} 15... Nd7 {[%clk 0:02:13.7]} 16. Qc2 {[%clk 0:02:30]} 16... h6
{[%clk 0:02:01.9]} 17. Ng4 {[%clk 0:02:19.3]} 17... f5 {[%clk 0:01:57.7]} 18.
Nh2 {[%clk 0:02:15.3]} 18... Qh4 {[%clk 0:01:47.8]} 19. Qe2 {[%clk 0:02:14]}
19... c5 {[%clk 0:01:44.7]} 20. Kd2 {[%clk 0:02:13.7]} 20... e5 {[%clk
0:01:31.6]} 21. Bb5 {[%clk 0:02:09]} 21... Qe7 {[%clk 0:01:22.8]} 22. Bxd7
{[%clk 0:01:56.5]} 22... Qxd7 {[%clk 0:01:23.7]} 23. Nf3 {[%clk 0:01:56.9]}
23... cxd4 {[%clk 0:01:09.3]} 24. exd4 {[%clk 0:01:56.5]} 24... e4 {[%clk
0:01:06.3]} 25. Ne5 {[%clk 0:01:56.9]} 25... Qe6 {[%clk 0:01:03.4]} 26. f4
{[%clk 0:01:57.2]} 26... Ba6 {[%clk 0:01:01]} 27. Qe3 {[%clk 0:01:57.3]} 27...
b5 {[%clk 0:01:00]} 28. axb5 {[%clk 0:01:56.9]} 28... Bxb5 {[%clk 0:01:00.3]}
29. Rhg1 {[%clk 0:01:54.3]} 29... Rfb8 {[%clk 0:00:57]} 30. b3 {[%clk
0:01:45.6]} 30... Be8 {[%clk 0:00:55.1]} 31. Kc2 {[%clk 0:01:39.8]} 31... Bxh5
{[%clk 0:00:53]} 32. Qh3 {[%clk 0:01:37.5]} 32... Bg4 {[%clk 0:00:46.7]} 33. Qe3
{[%clk 0:01:33.6]} 33... Rc8 {[%clk 0:00:44.8]} 34. Ra3 {[%clk 0:01:31.7]} 34...
Bh5 {[%clk 0:00:31.3]} 35. Kb2 {[%clk 0:01:30.8]} 35... Rcb8 {[%clk 0:00:22.1]}
36. Qh3 {[%clk 0:01:30.1]} 36... Bg4 {[%clk 0:00:21.8]} 37. Qe3 {[%clk 0:01:30]}
37... Ra6 {[%clk 0:00:21.2]} 38. Rga1 {[%clk 0:01:30.2]} 38... Rab6 {[%clk
0:00:21.2]} 39. Kc2 {[%clk 0:01:30]} 39... Qc8 {[%clk 0:00:15.2]} 40. Rb1 {[%clk
0:01:27.3]} 40... Qa6 {[%clk 0:00:15.1]} 41. Nd7 {[%clk 0:01:25]} 41... Be2
{[%clk 0:00:14.1]} 42. Nxb8 {[%clk 0:01:22.7]} 42... Bd3+ {[%clk 0:00:12.2]} 43.
Kb2 {[%clk 0:01:21]} 43... Rxb8 {[%clk 0:00:12.4]} 44. Rba1 {[%clk 0:01:21.6]}
44... Qc4 {[%clk 0:00:07.6]} 45. Qh3 {[%clk 0:01:16.9]} 45... a4 {[%clk
0:00:06.5]} 46. b4 {[%clk 0:01:01.6]} 46... Rxb4+ {[%clk 0:00:06.4]} 47. Kc1
{[%clk 0:01:02.2]} 47... Rb3 {[%clk 0:00:07.1]} 48. Rxb3 {[%clk 0:01:02.3]}
48... Qxb3 {[%clk 0:00:07.3]} 49. Kd2 {[%clk 0:01:01.8]} 49... Qc2+ {[%clk
0:00:07.1]} 50. Ke1 {[%clk 0:01:02.5]} 50... Qe2# {[%clk 0:00:07.5]} 0-1

[Event "Early-Titled-Tuesday-Blitz-March-26-2024"]
[Site "Chess.com"]
[Date "2024.03.26"]
[Round "11"]
[White "The_Straightforward_Rook"]
[Black "carloseduar100"]
[Result "0-1"]
[WhiteElo "2387"]
[BlackElo "2228"]
[TimeControl "180+1"]
[EndTime "10:04:23 PDT"]
[Termination "carloseduar100 won by resignation"]

1. e4 {[%clk 0:02:50]} 1... e6 {[%clk 0:02:59.9]} 2. b3 {[%clk 0:02:46.5]} 2...
d5 {[%clk 0:03:00]} 3. Bb2 {[%clk 0:02:45.8]} 3... dxe4 {[%clk 0:02:59.9]} 4.
Nc3 {[%clk 0:02:44.4]} 4... Nf6 {[%clk 0:03:00]} 5. Qe2 {[%clk 0:02:45]} 5...
Qd4 {[%clk 0:02:55.9]} 6. O-O-O {[%clk 0:02:44.1]} 6... a6 {[%clk 0:02:51.8]} 7.
f3 {[%clk 0:02:35.6]} 7... exf3 {[%clk 0:02:51.6]} 8. Nxf3 {[%clk 0:02:36.5]}
8... Qd8 {[%clk 0:02:49.4]} 9. d4 {[%clk 0:02:36.4]} 9... Be7 {[%clk 0:02:49.4]}
10. d5 {[%clk 0:02:35.5]} 10... Nxd5 {[%clk 0:02:47.6]} 11. Nxd5 {[%clk
0:02:35.3]} 11... exd5 {[%clk 0:02:47.8]} 12. Bxg7 {[%clk 0:02:35.5]} 12... Rg8
{[%clk 0:02:47.7]} 13. Bf6 {[%clk 0:02:35.6]} 13... Nc6 {[%clk 0:02:48.3]} 14.
Ne5 {[%clk 0:02:23.4]} 14... Nxe5 {[%clk 0:02:40.1]} 15. Qxe5 {[%clk 0:02:18.3]}
15... Be6 {[%clk 0:02:40.4]} 16. Bxe7 {[%clk 0:02:12.5]} 16... Qxe7 {[%clk
0:02:40.1]} 17. Bd3 {[%clk 0:02:11.7]} 17... Qg5+ {[%clk 0:02:39.6]} 18. Qxg5
{[%clk 0:02:11.1]} 18... Rxg5 {[%clk 0:02:40.5]} 19. g3 {[%clk 0:02:11.4]} 19...
h5 {[%clk 0:02:40.2]} 20. Rde1 {[%clk 0:02:05.1]} 20... O-O-O {[%clk 0:02:40]}
21. Rhf1 {[%clk 0:02:04.7]} 21... Kb8 {[%clk 0:02:34.7]} 22. Rf4 {[%clk
0:02:04.8]} 22... Rh8 {[%clk 0:02:34.3]} 23. Kb2 {[%clk 0:01:45]} 23... Rg4
{[%clk 0:02:31.9]} 24. Ref1 {[%clk 0:01:43.1]} 24... c6 {[%clk 0:02:21.6]} 25.
Bf5 {[%clk 0:01:38.6]} 25... Rxf4 {[%clk 0:02:16.4]} 26. Rxf4 {[%clk 0:01:38.2]}
26... Kc7 {[%clk 0:02:16.6]} 27. Bd3 {[%clk 0:01:30.7]} 27... Kd6 {[%clk
0:02:16.1]} 28. Kc3 {[%clk 0:01:31.2]} 28... a5 {[%clk 0:02:11.8]} 29. Kd2
{[%clk 0:01:27]} 29... Rg8 {[%clk 0:02:09.2]} 30. Rh4 {[%clk 0:01:24.7]} 30...
Rg5 {[%clk 0:02:08.1]} 31. Be2 {[%clk 0:01:21.6]} 31... Bg4 {[%clk 0:02:08.2]}
32. Bxg4 {[%clk 0:01:18.1]} 32... hxg4 {[%clk 0:02:08.1]} 33. Ke3 {[%clk
0:01:17.7]} 33... Re5+ {[%clk 0:02:01.8]} 34. Kd3 {[%clk 0:01:17]} 34... f5
{[%clk 0:02:01]} 35. Rh6+ {[%clk 0:01:15.3]} 35... Kc5 {[%clk 0:01:53.1]} 36.
Rf6 {[%clk 0:01:13.6]} 36... b5 {[%clk 0:01:42.6]} 37. c3 {[%clk 0:01:13.4]}
37... b4 {[%clk 0:01:39.1]} 38. Rf8 {[%clk 0:00:55.4]} 38... bxc3 {[%clk
0:01:37.8]} 39. Kxc3 {[%clk 0:00:56.3]} 39... Re2 {[%clk 0:01:36.6]} 40. Rxf5
{[%clk 0:00:54.7]} 40... Rxa2 {[%clk 0:01:35]} 41. Rf4 {[%clk 0:00:53]} 41...
Rxh2 {[%clk 0:01:33.7]} 42. Rxg4 {[%clk 0:00:53.7]} 42... Rg2 {[%clk 0:01:28.7]}
43. Rg5 {[%clk 0:00:51.5]} 43... Kb5 {[%clk 0:01:26.3]} 44. Rg8 {[%clk
0:00:44.8]} 44... Kc5 {[%clk 0:01:22.9]} 45. Rg5 {[%clk 0:00:44.3]} 45... Rg1
{[%clk 0:01:22.1]} 46. Rg8 {[%clk 0:00:39.7]} 46... d4+ {[%clk 0:01:19.2]} 47.
Kd2 {[%clk 0:00:37.1]} 47... Kb4 {[%clk 0:01:14.8]} 48. g4 {[%clk 0:00:37.5]}
48... Kxb3 {[%clk 0:01:14.5]} 49. g5 {[%clk 0:00:38.2]} 49... Kc4 {[%clk
0:01:14.3]} 50. g6 {[%clk 0:00:33.8]} 50... c5 {[%clk 0:01:14.5]} 51. g7 {[%clk
0:00:27.9]} 51... a4 {[%clk 0:01:14.6]} 52. Ke2 {[%clk 0:00:24.3]} 52... a3
{[%clk 0:01:14.2]} 53. Kf2 {[%clk 0:00:24.8]} 53... Rg6 {[%clk 0:01:13.8]} 54.
Kf3 {[%clk 0:00:24.8]} 54... a2 {[%clk 0:01:12.1]} 55. Ra8 {[%clk 0:00:23.5]}
55... Rxg7 {[%clk 0:01:12.5]} 56. Rxa2 {[%clk 0:00:24]} 56... Re7 {[%clk
0:01:13.1]} 0-1

[Event "Early-Titled-Tuesday-Blitz-March-26-2024"]
[Site "Chess.com"]
[Date "2024.03.26"]
[Round "11"]
[White "kidagent"]
[Black "WindWhistler11"]
[Result "0-1"]
[WhiteElo "2329"]
[BlackElo "2446"]
[TimeControl "180+1"]
[EndTime "10:04:24 PDT"]
[Termination "WindWhistler11 won by checkmate"]

1. e4 {[%clk 0:03:00.9]} 1... e6 {[%clk 0:02:12.1]} 2. d4 {[%clk 0:03:00.6]}
2... d5 {[%clk 0:02:10.9]} 3. Nd2 {[%clk 0:03:00.9]} 3... Nf6 {[%clk 0:02:10.6]}
4. e5 {[%clk 0:03:00.7]} 4... Nfd7 {[%clk 0:02:11.4]} 5. f4 {[%clk 0:03:00.5]}
5... c5 {[%clk 0:02:12.2]} 6. c3 {[%clk 0:03:00.5]} 6... Nc6 {[%clk 0:02:13]} 7.
Ndf3 {[%clk 0:03:00]} 7... Rb8 {[%clk 0:02:13.1]} 8. Bd3 {[%clk 0:02:57.6]} 8...
b5 {[%clk 0:02:13.6]} 9. Ne2 {[%clk 0:02:56.5]} 9... g6 {[%clk 0:02:13]} 10. O-O
{[%clk 0:02:54.6]} 10... Be7 {[%clk 0:02:10.4]} 11. g4 {[%clk 0:02:41.4]} 11...
h5 {[%clk 0:02:09.5]} 12. h3 {[%clk 0:02:41.7]} 12... hxg4 {[%clk 0:02:08.2]}
13. hxg4 {[%clk 0:02:42.1]} 13... c4 {[%clk 0:02:05.8]} 14. Bc2 {[%clk
0:02:41.2]} 14... Nb6 {[%clk 0:01:58.3]} 15. f5 {[%clk 0:02:40.2]} 15... gxf5
{[%clk 0:01:58]} 16. gxf5 {[%clk 0:02:39.6]} 16... Rg8+ {[%clk 0:01:56.8]} 17.
Kf2 {[%clk 0:02:38.2]} 17... Bh4+ {[%clk 0:01:55.5]} 18. Ke3 {[%clk 0:02:31.1]}
18... b4 {[%clk 0:01:45.8]} 19. f6 {[%clk 0:02:28.1]} 19... Bg5+ {[%clk
0:01:38.7]} 20. Nxg5 {[%clk 0:02:27.1]} 20... Rxg5 {[%clk 0:01:39.6]} 21. Rh1
{[%clk 0:02:18.6]} 21... Kd7 {[%clk 0:01:27.9]} 22. Kf2 {[%clk 0:02:11.4]} 22...
Rg4 {[%clk 0:01:14.9]} 23. Nf4 {[%clk 0:02:01.5]} 23... Qg8 {[%clk 0:01:12.9]}
24. Be3 {[%clk 0:02:00.3]} 24... b3 {[%clk 0:01:09.8]} 25. axb3 {[%clk
0:01:58.2]} 25... cxb3 {[%clk 0:01:10.7]} 26. Bxb3 {[%clk 0:01:49.5]} 26... Nc4
{[%clk 0:01:10.5]} 27. Bxc4 {[%clk 0:01:47.4]} 27... dxc4 {[%clk 0:01:08.4]} 28.
Ra2 {[%clk 0:01:35.8]} 28... Bb7 {[%clk 0:01:00.1]} 29. Rg1 {[%clk 0:01:19.8]}
29... Rxg1 {[%clk 0:00:57]} 30. Qxg1 {[%clk 0:01:20.7]} 30... Qh7 {[%clk
0:00:56.9]} 31. Qg7 {[%clk 0:01:15.3]} 31... Qc2+ {[%clk 0:00:46.1]} 32. Ne2
{[%clk 0:01:14.3]} 32... Qf5+ {[%clk 0:00:43.5]} 33. Bf4 {[%clk 0:01:09.9]}
33... Nd8 {[%clk 0:00:36.3]} 34. Qf8 {[%clk 0:01:06.3]} 34... Qe4 {[%clk
0:00:32.6]} 35. Qd6+ {[%clk 0:00:47.6]} 35... Kc8 {[%clk 0:00:32]} 36. Rxa7
{[%clk 0:00:44.4]} 36... Qf3+ {[%clk 0:00:30.2]} 37. Ke1 {[%clk 0:00:43.9]}
37... Qh1+ {[%clk 0:00:22.5]} 38. Kd2 {[%clk 0:00:43.9]} 38... Qg2 {[%clk
0:00:22.1]} 39. Ra5 {[%clk 0:00:37.2]} 39... Bc6 {[%clk 0:00:20.8]} 40. Rc5
{[%clk 0:00:36.7]} 40... Rxb2+ {[%clk 0:00:21]} 41. Kc1 {[%clk 0:00:35.2]} 41...
Rxe2 {[%clk 0:00:20]} 42. d5 {[%clk 0:00:31]} 42... Qf1# {[%clk 0:00:19.5]} 0-1

[Event "Early-Titled-Tuesday-Blitz-March-26-2024"]
[Site "Chess.com"]
[Date "2024.03.26"]
[Round "11"]
[White "Polish_fighter3000"]
[Black "baki83"]
[Result "1-0"]
[WhiteElo "3127"]
[BlackElo "2902"]
[TimeControl "180+1"]
[EndTime "10:04:31 PDT"]
[Termination "Polish_fighter3000 won by resignation"]

1. e4 {[%clk 0:03:00.9]} 1... c5 {[%clk 0:02:59.6]} 2. Nf3 {[%clk 0:03:01.5]}
2... e6 {[%clk 0:02:59.9]} 3. d4 {[%clk 0:03:01.5]} 3... cxd4 {[%clk 0:03:00.7]}
4. Nxd4 {[%clk 0:03:02.3]} 4... Nc6 {[%clk 0:03:01.2]} 5. Nc3 {[%clk 0:03:02.8]}
5... Qc7 {[%clk 0:03:00.9]} 6. Be3 {[%clk 0:03:01.7]} 6... a6 {[%clk 0:03:01.3]}
7. a3 {[%clk 0:02:59.1]} 7... b5 {[%clk 0:03:00.3]} 8. Nxc6 {[%clk 0:02:56.1]}
8... Qxc6 {[%clk 0:03:01.2]} 9. Be2 {[%clk 0:02:50.6]} 9... Bb7 {[%clk 0:02:57]}
10. O-O {[%clk 0:02:50.3]} 10... Bc5 {[%clk 0:02:54.1]} 11. Bd4 {[%clk
0:02:30.7]} 11... Nf6 {[%clk 0:02:30.1]} 12. Bf3 {[%clk 0:02:29.1]} 12... Bxd4
{[%clk 0:02:18.2]} 13. Qxd4 {[%clk 0:02:30]} 13... Qc4 {[%clk 0:02:10.8]} 14.
Qb6 {[%clk 0:01:07]} 14... Qc6 {[%clk 0:02:02.3]} 15. Qe3 {[%clk 0:01:07.2]}
15... e5 {[%clk 0:01:59.1]} 16. Qg5 {[%clk 0:01:05.4]} 16... Qe6 {[%clk
0:01:54.5]} 17. Qxg7 {[%clk 0:01:01.9]} 17... O-O-O {[%clk 0:01:51.8]} 18. Qh6
{[%clk 0:01:01.5]} 18... Rdg8 {[%clk 0:01:50.9]} 19. Rfd1 {[%clk 0:00:55.8]}
19... Rg6 {[%clk 0:01:44.3]} 20. Qe3 {[%clk 0:00:56.3]} 20... Rhg8 {[%clk
0:01:37.1]} 21. g3 {[%clk 0:00:38.1]} 21... Ng4 {[%clk 0:01:25.1]} 22. Qc5+
{[%clk 0:00:34]} 22... Kb8 {[%clk 0:01:17.2]} 23. Bxg4 {[%clk 0:00:24.4]} 23...
Rxg4 {[%clk 0:01:18.1]} 24. Rd6 {[%clk 0:00:23.6]} 24... Qe7 {[%clk 0:01:12.5]}
25. Rad1 {[%clk 0:00:24.1]} 25... Rc8 {[%clk 0:01:07.4]} 26. Qb6 {[%clk
0:00:23.2]} 26... Qd8 {[%clk 0:00:59.3]} 27. Qxd8 {[%clk 0:00:22.8]} 27... Rxd8
{[%clk 0:01:00.1]} 28. Rxd7 {[%clk 0:00:19.3]} 28... Rxd7 {[%clk 0:00:59.9]} 29.
Rxd7 {[%clk 0:00:20.2]} 29... f6 {[%clk 0:00:56.2]} 30. Rxh7 {[%clk 0:00:15.8]}
30... Rg8 {[%clk 0:00:56.5]} 31. Rd7 {[%clk 0:00:16.2]} 31... a5 {[%clk
0:00:55.5]} 32. f3 {[%clk 0:00:14]} 32... b4 {[%clk 0:00:55.9]} 33. axb4 {[%clk
0:00:14.3]} 33... axb4 {[%clk 0:00:56.8]} 34. Nd5 {[%clk 0:00:14.9]} 34... Bc6
{[%clk 0:00:47.4]} 35. Ne7 {[%clk 0:00:10.4]} 35... Bxd7 {[%clk 0:00:34.4]} 36.
Nxg8 {[%clk 0:00:10.3]} 36... b3 {[%clk 0:00:35.3]} 37. cxb3 {[%clk 0:00:09.8]}
37... Be6 {[%clk 0:00:33.9]} 38. Nxf6 {[%clk 0:00:09.6]} 38... Kc7 {[%clk
0:00:34.8]} 39. b4 {[%clk 0:00:07.9]} 39... Kd6 {[%clk 0:00:35.7]} 40. Kf2
{[%clk 0:00:07.9]} 40... Ke7 {[%clk 0:00:36.1]} 41. Nd5+ {[%clk 0:00:07.7]}
41... Bxd5 {[%clk 0:00:36.4]} 42. exd5 {[%clk 0:00:07.7]} 1-0

[Event "Early-Titled-Tuesday-Blitz-March-26-2024"]
[Site "Chess.com"]
[Date "2024.03.26"]
[Round "11"]
[White "Zampronha1971"]
[Black "Tolya2"]
[Result "0-1"]
[WhiteElo "2360"]
[BlackElo "2481"]
[TimeControl "180+1"]
[EndTime "10:04:31 PDT"]
[Termination "Tolya2 won by resignation"]

1. e4 {[%clk 0:03:00.9]} 1... c5 {[%clk 0:02:59]} 2. Nf3 {[%clk 0:03:00.9]} 2...
d6 {[%clk 0:02:58.3]} 3. d4 {[%clk 0:03:01.5]} 3... cxd4 {[%clk 0:02:58]} 4.
Nxd4 {[%clk 0:03:02.4]} 4... Nf6 {[%clk 0:02:57.5]} 5. Nc3 {[%clk 0:03:03.1]}
5... a6 {[%clk 0:02:57.4]} 6. Bg5 {[%clk 0:03:03.6]} 6... Nbd7 {[%clk
0:02:56.4]} 7. f4 {[%clk 0:03:03.7]} 7... Qc7 {[%clk 0:02:56.3]} 8. Qf3 {[%clk
0:03:02.5]} 8... h6 {[%clk 0:02:56.3]} 9. Bxf6 {[%clk 0:03:01.5]} 9... Nxf6
{[%clk 0:02:55.3]} 10. f5 {[%clk 0:02:58.9]} 10... Rg8 {[%clk 0:02:53.2]} 11.
O-O-O {[%clk 0:02:52.1]} 11... g5 {[%clk 0:02:47.9]} 12. Kb1 {[%clk 0:02:46.6]}
12... Bg7 {[%clk 0:02:44.5]} 13. h4 {[%clk 0:02:43.3]} 13... g4 {[%clk
0:02:40.7]} 14. Qf4 {[%clk 0:02:38.2]} 14... b5 {[%clk 0:02:32.6]} 15. Be2
{[%clk 0:02:24.6]} 15... h5 {[%clk 0:02:26.6]} 16. Rhe1 {[%clk 0:02:21.4]} 16...
Bb7 {[%clk 0:02:24.9]} 17. Nd5 {[%clk 0:02:15.5]} 17... Bxd5 {[%clk 0:02:16.4]}
18. exd5 {[%clk 0:02:15.6]} 18... Kf8 {[%clk 0:02:12.3]} 19. Nb3 {[%clk
0:01:44.3]} 19... Nd7 {[%clk 0:02:06.7]} 20. Qg5 {[%clk 0:01:07.1]} 20... Rh8
{[%clk 0:02:03.4]} 21. Qe3 {[%clk 0:00:55.6]} 21... Bf6 {[%clk 0:02:00.5]} 22.
g3 {[%clk 0:00:54.6]} 22... Rc8 {[%clk 0:01:58.5]} 23. Bd3 {[%clk 0:00:48.1]}
23... Ne5 {[%clk 0:01:57.7]} 24. Nd4 {[%clk 0:00:47]} 24... Kg7 {[%clk
0:01:53.3]} 25. Nc6 {[%clk 0:00:24.2]} 25... Nxc6 {[%clk 0:01:51.3]} 26. dxc6
{[%clk 0:00:25.1]} 26... Qxc6 {[%clk 0:01:51.3]} 27. Be4 {[%clk 0:00:24.8]}
27... Qc5 {[%clk 0:01:49.9]} 28. Qxc5 {[%clk 0:00:23.7]} 28... Rxc5 {[%clk
0:01:48.9]} 29. Rd5 {[%clk 0:00:23.5]} 29... Rhc8 {[%clk 0:01:46.6]} 30. Red1
{[%clk 0:00:23.6]} 30... Rc4 {[%clk 0:01:42.5]} 31. Bd3 {[%clk 0:00:23.8]} 31...
Rb4 {[%clk 0:01:37.4]} 32. b3 {[%clk 0:00:21.3]} 32... Be5 {[%clk 0:01:28.4]}
33. a3 {[%clk 0:00:20.5]} 33... Rd4 {[%clk 0:01:24.3]} 34. Rxd4 {[%clk
0:00:20.9]} 34... Bxd4 {[%clk 0:01:24.3]} 35. Bxb5 {[%clk 0:00:21.7]} 35... Be5
{[%clk 0:01:23.3]} 36. Bxa6 {[%clk 0:00:21.4]} 36... Ra8 {[%clk 0:01:19.3]} 37.
Bc4 {[%clk 0:00:13.8]} 37... Rxa3 {[%clk 0:01:18.8]} 38. c3 {[%clk 0:00:14.4]}
38... Bxc3 {[%clk 0:01:17.1]} 39. Kc2 {[%clk 0:00:14.5]} 39... Be5 {[%clk
0:01:16.6]} 40. Rd3 {[%clk 0:00:14.7]} 40... Ra2+ {[%clk 0:01:15.9]} 41. Kb1
{[%clk 0:00:14.9]} 41... Rg2 {[%clk 0:01:15.2]} 42. b4 {[%clk 0:00:15.4]} 42...
Rxg3 {[%clk 0:01:09.8]} 43. Rxg3 {[%clk 0:00:15.3]} 43... Bxg3 {[%clk
0:01:09.6]} 44. b5 {[%clk 0:00:16.2]} 44... Bxh4 {[%clk 0:01:04.7]} 45. b6
{[%clk 0:00:16.5]} 45... Bf2 {[%clk 0:01:04.5]} 46. b7 {[%clk 0:00:16]} 46...
Ba7 {[%clk 0:01:03.4]} 47. Kc2 {[%clk 0:00:12.8]} 47... Kf6 {[%clk 0:01:00.8]}
48. Kd3 {[%clk 0:00:12.9]} 48... h4 {[%clk 0:01:00.9]} 49. Ke2 {[%clk
0:00:12.9]} 49... h3 {[%clk 0:01:00.8]} 50. Kf1 {[%clk 0:00:12.9]} 50... g3
{[%clk 0:01:00.3]} 51. Bd5 {[%clk 0:00:11.9]} 51... g2+ {[%clk 0:00:59.8]} 52.
Bxg2 {[%clk 0:00:11.8]} 52... hxg2+ {[%clk 0:00:59.9]} 0-1